[Event "Titled Tuesday Blitz April 25 Late 2023"]
[White "Rangel, Daniel"]
[Black "Martinez Reyes, Pedro Ramon"]
[WhiteFideId "2124475"]
[BlackFideId "3901807"]
[WhiteElo "2256"]
[BlackElo "2340"]
[Result "1/2-1/2"]
[Round "08"]
[TimeControl "180+2"]
[Date "2023.04.25"]
[WhiteClock "0:00:07"]
[BlackClock "0:00:10"]

1. c4 {[%clk 0:02:59]}  Nf6 {[%clk 0:02:56]} 2. Nc3 {[%clk 0:02:54]}  c6 {[%clk 0:02:44]} 3. d4 {[%clk 0:02:47]}  b5 {[%clk 0:02:37]} 4. cxb5 {[%clk 0:02:45]}  cxb5 {[%clk 0:02:37]} 5. Nxb5 {[%clk 0:02:45]}  Bb7 {[%clk 0:02:37]} 6. Nf3 {[%clk 0:02:40]}  e6 {[%clk 0:02:30]} 7. Nc3 {[%clk 0:02:35]}  Bb4 {[%clk 0:02:17]} 8. Bd2 {[%clk 0:02:29]}  O-O {[%clk 0:01:39]} 9. e3 {[%clk 0:02:04]}  a5 {[%clk 0:01:39]} 10. Bd3 {[%clk 0:02:04]}  Na6 {[%clk 0:01:39]} 11. O-O {[%clk 0:02:04]}  Rb8 {[%clk 0:01:31]} 12. Ne5 {[%clk 0:01:57]}  d6 {[%clk 0:01:29]} 13. Ng4 {[%clk 0:01:56]}  Nd5 {[%clk 0:01:20]} 14. e4 {[%clk 0:01:47]}  Nb6 {[%clk 0:01:08]} 15. Qe2 {[%clk 0:01:33]}  Nc7 {[%clk 0:01:06]} 16. e5 {[%clk 0:01:28]}  dxe5 {[%clk 0:01:03]} 17. Qxe5 {[%clk 0:01:14]}  Bd6 {[%clk 0:00:59]} 18. Qh5 {[%clk 0:01:11]}  f5 {[%clk 0:00:56]} 19. Rad1 {[%clk 0:00:53]}  Ncd5 {[%clk 0:00:42]} 20. Bg5 {[%clk 0:00:51]}  Qc7 {[%clk 0:00:36]} 21. Bb1 {[%clk 0:00:44]}  Nc4 {[%clk 0:00:30]} 22. Nxd5 {[%clk 0:00:33]}  Bxd5 {[%clk 0:00:31]} 23. Rde1 {[%clk 0:00:34]}  Rxb2 {[%clk 0:00:30]} 24. Ne5 {[%clk 0:00:29]}  Nxe5 {[%clk 0:00:27]} 25. dxe5 {[%clk 0:00:29]}  Bc5 {[%clk 0:00:27]} 26. Be3 {[%clk 0:00:18]}  Rfb8 {[%clk 0:00:20]} 27. Rc1 {[%clk 0:00:15]}  Rxb1 {[%clk 0:00:19]} 28. Rxb1 {[%clk 0:00:15]}  Bxe3 {[%clk 0:00:19]} 29. Rxb8+ {[%clk 0:00:14]}  Qxb8 {[%clk 0:00:20]} 30. fxe3 {[%clk 0:00:15]}  g6 {[%clk 0:00:18]} 31. Qg5 {[%clk 0:00:14]}  Qxe5 {[%clk 0:00:18]} 32. Qf4 {[%clk 0:00:14]}  Qb2 {[%clk 0:00:17]} 33. Rf2 {[%clk 0:00:12]}  Qc1+ {[%clk 0:00:17]} 34. Rf1 {[%clk 0:00:11]}  Qc2 {[%clk 0:00:18]} 35. Rf2 {[%clk 0:00:12]}  Qc6 {[%clk 0:00:18]} 36. h4 {[%clk 0:00:11]}  h5 {[%clk 0:00:16]} 37. Qe5 {[%clk 0:00:09]}  Kf7 {[%clk 0:00:16]} 38. Qh8 {[%clk 0:00:09]}  Qc1+ {[%clk 0:00:15]} 39. Kh2 {[%clk 0:00:09]}  Qxe3 {[%clk 0:00:15]} 40. Qh7+ {[%clk 0:00:08]}  Kf6 {[%clk 0:00:15]} 41. Qh8+ {[%clk 0:00:09]}  Kf7 {[%clk 0:00:16]} 42. Qh7+ {[%clk 0:00:09]}  Kf8 {[%clk 0:00:16]} 43. Qh8+ {[%clk 0:00:09]}  Ke7 {[%clk 0:00:16]} 44. Qg7+ {[%clk 0:00:10]}  Kd6 {[%clk 0:00:17]} 45. Qf8+ {[%clk 0:00:10]}  Kd7 {[%clk 0:00:15]} 46. Qf7+ {[%clk 0:00:10]}  Kd8 {[%clk 0:00:16]} 47. Qf8+ {[%clk 0:00:10]}  Kd7 {[%clk 0:00:16]} 48. Qf7+ {[%clk 0:00:11]}  Kd6 {[%clk 0:00:14]} 49. Qf8+ {[%clk 0:00:11]}  Ke5 {[%clk 0:00:14]} 50. Qb8+ {[%clk 0:00:11]}  Kf6 {[%clk 0:00:14]} 51. Qf8+ {[%clk 0:00:11]}  Ke5 {[%clk 0:00:14]} 52. Qb8+ {[%clk 0:00:11]}  Ke4 {[%clk 0:00:11]} 53. Qb2 {[%clk 0:00:11]}  Bc4 {[%clk 0:00:08]} 54. g3 {[%clk 0:00:11]}  e5 {[%clk 0:00:07]} 55. Qc2+ {[%clk 0:00:09]}  Bd3 {[%clk 0:00:07]} 56. Qc6+ {[%clk 0:00:09]}  Kd4 {[%clk 0:00:07]} 57. Qb6+ {[%clk 0:00:09]}  Ke4 {[%clk 0:00:07]} 58. Qc6+ {[%clk 0:00:10]}  Kd4 {[%clk 0:00:08]} 59. Rb2 {[%clk 0:00:07]}  Bc4 {[%clk 0:00:06]} 60. Qb6+ {[%clk 0:00:06]}  Kd3 {[%clk 0:00:06]} 61. Qd6+ {[%clk 0:00:06]}  Qd4 {[%clk 0:00:05]} 62. Qa3+ {[%clk 0:00:05]}  Ke4 {[%clk 0:00:05]} 63. Rg2 {[%clk 0:00:05]}  Bd5 {[%clk 0:00:02]} 64. Qc1 {[%clk 0:00:03]}  Qe3 {[%clk 0:00:02]} 65. Qb1+ {[%clk 0:00:03]}  Kf3 {[%clk 0:00:02]} 66. Qf1+ {[%clk 0:00:02]}  Kg4 {[%clk 0:00:02]} 67. Re2 {[%clk 0:00:02]}  Qf3 {[%clk 0:00:02]} 68. Qxf3+ {[%clk 0:00:02]}  Kxf3 {[%clk 0:00:01]} 69. Rxe5 {[%clk 0:00:03]}  Bxa2 {[%clk 0:00:02]} 70. Rxa5 {[%clk 0:00:03]}  Bb1 {[%clk 0:00:01]} 71. Ra7 {[%clk 0:00:04]}  f4 {[%clk 0:00:01]} 72. gxf4 {[%clk 0:00:04]}  Bf5 {[%clk 0:00:01]} 73. Ra4 {[%clk 0:00:04]}  Kg4 {[%clk 0:00:02]} 74. Rd4 {[%clk 0:00:04]}  Kxh4 {[%clk 0:00:02]} 75. Kg2 {[%clk 0:00:05]}  Kg4 {[%clk 0:00:03]} 76. Kf2 {[%clk 0:00:05]}  h4 {[%clk 0:00:04]} 77. Kg2 {[%clk 0:00:05]}  h3+ {[%clk 0:00:04]} 78. Kh2 {[%clk 0:00:05]}  Kh4 {[%clk 0:00:05]} 79. Rb4 {[%clk 0:00:05]}  Kh5 {[%clk 0:00:05]} 80. Kg3 {[%clk 0:00:05]}  Kh6 {[%clk 0:00:05]} 81. Rb8 {[%clk 0:00:04]}  Kg7 {[%clk 0:00:06]} 82. Rb2 {[%clk 0:00:05]}  Kh6 {[%clk 0:00:06]} 83. Kh4 {[%clk 0:00:04]}  Kg7 {[%clk 0:00:06]} 84. Kg5 {[%clk 0:00:05]}  Kf7 {[%clk 0:00:07]} 85. Re2 {[%clk 0:00:04]}  Kf8 {[%clk 0:00:07]} 86. Rh2 {[%clk 0:00:03]}  Ke7 {[%clk 0:00:07]} 87. Kh4 {[%clk 0:00:04]}  Ke6 {[%clk 0:00:08]} 88. Kg3 {[%clk 0:00:05]}  Kd5 {[%clk 0:00:08]} 89. Rxh3 {[%clk 0:00:04]}  Bxh3 {[%clk 0:00:07]} 90. Kxh3 {[%clk 0:00:05]}  Ke6 {[%clk 0:00:07]} 91. Kg4 {[%clk 0:00:06]}  Kf6 {[%clk 0:00:08]} 92. Kg3 {[%clk 0:00:06]}  Kf5 {[%clk 0:00:09]} 93. Kf3 {[%clk 0:00:07]}  g5 {[%clk 0:00:09]} 94. fxg5 {[%clk 0:00:07]}  Kxg5 {[%clk 0:00:10]} 1/2-1/2


[Site "https://www.chess.com"]

[Event "Titled Tuesday Blitz April 25 Late 2023"]
[White "Pesotskiy, Mikhail"]
[Black "Janaszak, Dawid"]
[WhiteFideId "34164453"]
[BlackFideId "1119206"]
[WhiteElo "2131"]
[BlackElo "2220"]
[Result "1-0"]
[Round "08"]
[TimeControl "180+2"]
[Date "2023.04.25"]
[WhiteClock "0:00:10"]
[BlackClock "0:00:03"]

1. d4 {[%clk 0:03:00]}  Nf6 {[%clk 0:02:59]} 2. c4 {[%clk 0:03:00]}  g6 {[%clk 0:02:53]} 3. Nc3 {[%clk 0:03:00]}  d5 {[%clk 0:02:51]} 4. Bg5 {[%clk 0:03:00]}  Bg7 {[%clk 0:02:51]} 5. Bxf6 {[%clk 0:02:59]}  Bxf6 {[%clk 0:02:52]} 6. cxd5 {[%clk 0:03:00]}  c6 {[%clk 0:02:50]} 7. e3 {[%clk 0:03:00]}  cxd5 {[%clk 0:02:49]} 8. Bb5+ {[%clk 0:03:01]}  Kf8 {[%clk 0:02:45]} 9. Nf3 {[%clk 0:02:59]}  Kg7 {[%clk 0:02:43]} 10. O-O {[%clk 0:02:59]}  Bf5 {[%clk 0:02:34]} 11. Bd3 {[%clk 0:02:56]}  Bg4 {[%clk 0:02:27]} 12. Qb3 {[%clk 0:02:31]}  Bxf3 {[%clk 0:02:27]} 13. gxf3 {[%clk 0:02:32]}  e6 {[%clk 0:02:25]} 14. Qxb7 {[%clk 0:02:32]}  Nd7 {[%clk 0:02:25]} 15. Qa6 {[%clk 0:02:29]}  h5 {[%clk 0:02:11]} 16. f4 {[%clk 0:02:18]}  h4 {[%clk 0:02:01]} 17. h3 {[%clk 0:02:12]}  Rh5 {[%clk 0:01:46]} 18. Be2 {[%clk 0:02:10]}  Rh8 {[%clk 0:01:37]} 19. Rac1 {[%clk 0:02:04]}  g5 {[%clk 0:01:31]} 20. fxg5 {[%clk 0:02:02]}  Bxg5 {[%clk 0:01:29]} 21. f4 {[%clk 0:02:03]}  Be7 {[%clk 0:01:19]} 22. Kh2 {[%clk 0:01:59]}  Qb8 {[%clk 0:01:03]} 23. Qb5 {[%clk 0:01:50]}  Qd6 {[%clk 0:00:49]} 24. Rg1+ {[%clk 0:01:46]}  Kf8 {[%clk 0:00:50]} 25. Na4 {[%clk 0:01:44]}  Rb8 {[%clk 0:00:46]} 26. Qc6 {[%clk 0:01:44]}  Nb6 {[%clk 0:00:31]} 27. Qxd6 {[%clk 0:01:35]}  Bxd6 {[%clk 0:00:31]} 28. Nxb6 {[%clk 0:01:30]}  axb6 {[%clk 0:00:32]} 29. Kg2 {[%clk 0:00:53]}  Ke7 {[%clk 0:00:32]} 30. Kf3 {[%clk 0:00:53]}  Rhg8 {[%clk 0:00:28]} 31. Bb5 {[%clk 0:00:29]}  Ra8 {[%clk 0:00:25]} 32. a4 {[%clk 0:00:30]}  Rab8 {[%clk 0:00:20]} 33. b3 {[%clk 0:00:25]}  Ra8 {[%clk 0:00:20]} 34. Rg4 {[%clk 0:00:25]}  Rxg4 {[%clk 0:00:16]} 35. hxg4 {[%clk 0:00:23]}  Rh8 {[%clk 0:00:14]} 36. Rh1 {[%clk 0:00:22]}  f6 {[%clk 0:00:11]} 37. Bf1 {[%clk 0:00:20]}  e5 {[%clk 0:00:11]} 38. Bb5 {[%clk 0:00:11]}  exf4 {[%clk 0:00:08]} 39. exf4 {[%clk 0:00:12]}  f5 {[%clk 0:00:07]} 40. gxf5 {[%clk 0:00:10]}  Kf6 {[%clk 0:00:07]} 41. Bd7 {[%clk 0:00:10]}  Rh7 {[%clk 0:00:06]} 42. Be6 {[%clk 0:00:10]}  h3 {[%clk 0:00:06]} 43. Bxd5 {[%clk 0:00:09]}  Rh4 {[%clk 0:00:04]} 44. Be6 {[%clk 0:00:04]}  Bxf4 {[%clk 0:00:03]} 45. d5 {[%clk 0:00:02]}  Bd6 {[%clk 0:00:03]} 46. Ke3 {[%clk 0:00:01]}  h2 {[%clk 0:00:03]} 47. Kf3 {[%clk 0:00:02]}  Bc5 {[%clk 0:00:03]} 48. Kg2 {[%clk 0:00:02]}  Rg4+ {[%clk 0:00:03]} 49. Kxh2 {[%clk 0:00:02]}  Bd6+ {[%clk 0:00:03]} 50. Kh3 {[%clk 0:00:03]}  Kg5 {[%clk 0:00:04]} 51. Rf1 {[%clk 0:00:02]}  Rg3+ {[%clk 0:00:04]} 52. Kh2 {[%clk 0:00:03]}  Rg4+ {[%clk 0:00:04]} 53. Kh1 {[%clk 0:00:03]}  Kh4 {[%clk 0:00:03]} 54. Rg1 {[%clk 0:00:04]}  Rxg1+ {[%clk 0:00:02]} 55. Kxg1 {[%clk 0:00:04]}  Kg5 {[%clk 0:00:03]} 56. Kf2 {[%clk 0:00:04]}  Kf6 {[%clk 0:00:03]} 57. Ke3 {[%clk 0:00:05]}  Ke5 {[%clk 0:00:03]} 58. Kd3 {[%clk 0:00:05]}  Bc5 {[%clk 0:00:04]} 59. Kc4 {[%clk 0:00:06]}  Be3 {[%clk 0:00:03]} 60. Kb5 {[%clk 0:00:07]}  Bf2 {[%clk 0:00:03]} 61. b4 {[%clk 0:00:07]}  Be3 {[%clk 0:00:04]} 62. Ka6 {[%clk 0:00:08]}  Bd4 {[%clk 0:00:03]} 63. a5 {[%clk 0:00:08]}  bxa5 {[%clk 0:00:03]} 64. bxa5 {[%clk 0:00:09]}  Kd6 {[%clk 0:00:04]} 65. Kb7 {[%clk 0:00:09]}  Ke7 {[%clk 0:00:03]} 66. a6 {[%clk 0:00:10]} 1-0


[Site "https://www.chess.com"]

[Event "Titled Tuesday Blitz April 25 Late 2023"]
[White "Liu, Casper"]
[Black "Ladan, Nicholas"]
[WhiteFideId "1454153"]
[BlackFideId "30918855"]
[WhiteElo "2221"]
[BlackElo "2167"]
[Result "1-0"]
[Round "08"]
[TimeControl "180+2"]
[Date "2023.04.25"]
[WhiteClock "0:00:17"]
[BlackClock "0:00:03"]

1. e4 {[%clk 0:03:00]}  e5 {[%clk 0:03:00]} 2. Nf3 {[%clk 0:03:00]}  Nc6 {[%clk 0:03:00]} 3. d4 {[%clk 0:03:01]}  exd4 {[%clk 0:03:00]} 4. Nxd4 {[%clk 0:03:01]}  Bc5 {[%clk 0:03:01]} 5. Be3 {[%clk 0:03:01]}  Qf6 {[%clk 0:03:00]} 6. c3 {[%clk 0:03:02]}  Nge7 {[%clk 0:03:00]} 7. g3 {[%clk 0:03:03]}  b6 {[%clk 0:02:58]} 8. Bg2 {[%clk 0:03:03]}  Bb7 {[%clk 0:02:58]} 9. O-O {[%clk 0:03:03]}  O-O {[%clk 0:02:58]} 10. Nc2 {[%clk 0:02:45]}  Rad8 {[%clk 0:02:51]} 11. Bxc5 {[%clk 0:02:45]}  bxc5 {[%clk 0:02:52]} 12. Ne3 {[%clk 0:02:45]}  Rfe8 {[%clk 0:02:43]} 13. Nd2 {[%clk 0:02:40]}  d6 {[%clk 0:02:41]} 14. Nb3 {[%clk 0:02:36]}  Ba6 {[%clk 0:02:36]} 15. Re1 {[%clk 0:02:32]}  Ne5 {[%clk 0:02:33]} 16. Nc1 {[%clk 0:02:33]}  h6 {[%clk 0:01:58]} 17. f4 {[%clk 0:02:26]}  Nc4 {[%clk 0:01:58]} 18. Nxc4 {[%clk 0:02:19]}  Bxc4 {[%clk 0:01:59]} 19. Qc2 {[%clk 0:02:17]}  Ng6 {[%clk 0:01:54]} 20. Nd3 {[%clk 0:02:16]}  Bxd3 {[%clk 0:01:48]} 21. Qxd3 {[%clk 0:02:17]}  Rb8 {[%clk 0:01:49]} 22. Rab1 {[%clk 0:02:16]}  Ne7 {[%clk 0:01:41]} 23. Qa6 {[%clk 0:02:12]}  Nc8 {[%clk 0:01:35]} 24. Qa4 {[%clk 0:02:06]}  Qd8 {[%clk 0:01:30]} 25. e5 {[%clk 0:02:00]}  Nb6 {[%clk 0:01:21]} 26. Qxa7 {[%clk 0:01:58]}  dxe5 {[%clk 0:01:17]} 27. Rbd1 {[%clk 0:01:55]}  Qf6 {[%clk 0:01:11]} 28. Qxc7 {[%clk 0:01:51]}  exf4 {[%clk 0:01:07]} 29. Rxe8+ {[%clk 0:01:44]}  Rxe8 {[%clk 0:01:07]} 30. Qxc5 {[%clk 0:01:44]}  f3 {[%clk 0:00:55]} 31. Rf1 {[%clk 0:01:18]}  Nd7 {[%clk 0:00:47]} 32. Qb5 {[%clk 0:01:03]}  Rb8 {[%clk 0:00:19]} 33. Qxd7 {[%clk 0:01:02]}  Qb6+ {[%clk 0:00:20]} 34. Qd4 {[%clk 0:00:56]}  fxg2 {[%clk 0:00:20]} 35. Kxg2 {[%clk 0:00:55]}  Qxb2+ {[%clk 0:00:17]} 36. Rf2 {[%clk 0:00:54]}  Qb7+ {[%clk 0:00:17]} 37. Kg1 {[%clk 0:00:48]}  Re8 {[%clk 0:00:16]} 38. Qd1 {[%clk 0:00:40]}  Qc6 {[%clk 0:00:14]} 39. Qf3 {[%clk 0:00:38]}  Qc4 {[%clk 0:00:11]} 40. Kg2 {[%clk 0:00:32]}  Re6 {[%clk 0:00:11]} 41. Rd2 {[%clk 0:00:28]}  g6 {[%clk 0:00:08]} 42. h4 {[%clk 0:00:26]}  Re7 {[%clk 0:00:03]} 43. Rf2 {[%clk 0:00:23]}  Qe6 {[%clk 0:00:03]} 44. Kh2 {[%clk 0:00:22]}  Kg7 {[%clk 0:00:03]} 45. Qf4 {[%clk 0:00:20]}  h5 {[%clk 0:00:03]} 46. c4 {[%clk 0:00:17]}  Rc7 {[%clk 0:00:03]} 47. Qxc7 {[%clk 0:00:17]}  Qe3 {[%clk 0:00:03]} 48. Qxf7+ {[%clk 0:00:16]}  Kh6 {[%clk 0:00:03]} 49. Qf8+ {[%clk 0:00:16]}  Kh7 {[%clk 0:00:03]} 50. Rf7# {[%clk 0:00:17]} 1-0


[Site "https://www.chess.com"]

[Event "Titled Tuesday Blitz April 25 Late 2023"]
[White "Espinosa, Pedro"]
[Black "Lopez Gracia, Fernando"]
[WhiteFideId "30921066"]
[BlackFideId "2207184"]
[WhiteElo "2016"]
[BlackElo "2255"]
[Result "1-0"]
[Round "08"]
[TimeControl "180+2"]
[Date "2023.04.25"]
[WhiteClock "0:00:07"]
[BlackClock "0:00:04"]

1. d4 {[%clk 0:03:00]}  Nf6 {[%clk 0:02:59]} 2. c4 {[%clk 0:03:00]}  e6 {[%clk 0:03:00]} 3. Nf3 {[%clk 0:03:00]}  c5 {[%clk 0:02:58]} 4. d5 {[%clk 0:02:58]}  d6 {[%clk 0:02:59]} 5. Nc3 {[%clk 0:02:58]}  exd5 {[%clk 0:03:00]} 6. cxd5 {[%clk 0:02:57]}  g6 {[%clk 0:03:00]} 7. e4 {[%clk 0:02:56]}  Bg7 {[%clk 0:03:00]} 8. Nd2 {[%clk 0:02:56]}  Nbd7 {[%clk 0:02:58]} 9. Be2 {[%clk 0:02:56]}  O-O {[%clk 0:02:58]} 10. O-O {[%clk 0:02:57]}  Re8 {[%clk 0:02:55]} 11. a4 {[%clk 0:02:50]}  b6 {[%clk 0:02:53]} 12. h3 {[%clk 0:02:45]}  a6 {[%clk 0:02:43]} 13. Qc2 {[%clk 0:02:26]}  g5 {[%clk 0:02:41]} 14. Nc4 {[%clk 0:02:23]}  Ne5 {[%clk 0:02:41]} 15. Bxg5 {[%clk 0:02:14]}  Nxc4 {[%clk 0:02:41]} 16. Bxc4 {[%clk 0:02:15]}  h6 {[%clk 0:02:37]} 17. Bh4 {[%clk 0:02:01]}  Bd7 {[%clk 0:02:31]} 18. Rfe1 {[%clk 0:01:59]}  Qc7 {[%clk 0:02:29]} 19. Qd2 {[%clk 0:01:50]}  b5 {[%clk 0:02:19]} 20. axb5 {[%clk 0:01:46]}  axb5 {[%clk 0:02:19]} 21. Rxa8 {[%clk 0:01:46]}  Rxa8 {[%clk 0:02:12]} 22. Bxb5 {[%clk 0:01:40]}  Bxb5 {[%clk 0:02:09]} 23. Nxb5 {[%clk 0:01:41]}  Qb8 {[%clk 0:01:56]} 24. Nc3 {[%clk 0:01:37]}  Nd7 {[%clk 0:01:57]} 25. Qe2 {[%clk 0:01:12]}  c4 {[%clk 0:01:52]} 26. Qxc4 {[%clk 0:00:56]}  Qxb2 {[%clk 0:01:51]} 27. Nd1 {[%clk 0:00:46]}  Qa1 {[%clk 0:01:32]} 28. f4 {[%clk 0:00:37]}  Ra2 {[%clk 0:00:50]} 29. Nc3 {[%clk 0:00:11]}  Qxc3 {[%clk 0:00:50]} 30. Qxa2 {[%clk 0:00:11]}  Bd4+ {[%clk 0:00:49]} 31. Kh2 {[%clk 0:00:10]}  Bf6 {[%clk 0:00:44]} 32. Bg3 {[%clk 0:00:08]}  h5 {[%clk 0:00:43]} 33. Qe2 {[%clk 0:00:08]}  Nc5 {[%clk 0:00:36]} 34. e5 {[%clk 0:00:07]}  Bg7 {[%clk 0:00:32]} 35. Qxh5 {[%clk 0:00:06]}  dxe5 {[%clk 0:00:29]} 36. fxe5 {[%clk 0:00:07]}  Qd2 {[%clk 0:00:25]} 37. e6 {[%clk 0:00:06]}  fxe6 {[%clk 0:00:23]} 38. dxe6 {[%clk 0:00:07]}  Nd3 {[%clk 0:00:12]} 39. e7 {[%clk 0:00:07]}  Nxe1 {[%clk 0:00:04]} 40. e8=Q+ {[%clk 0:00:07]}  Bf8 {[%clk 0:00:04]} 41. Qhf7+ {[%clk 0:00:06]}  Kh8 {[%clk 0:00:04]} 42. Qexf8# {[%clk 0:00:07]} 1-0


[Site "https://www.chess.com"]

[Event "Titled Tuesday Blitz April 25 Late 2023"]
[White "Ardila, Oscar Humberto"]
[Black "Przybylski, Wojciech"]
[WhiteFideId "4404742"]
[BlackFideId "1117599"]
[WhiteElo "1918"]
[BlackElo "2222"]
[Result "0-1"]
[Round "08"]
[TimeControl "180+2"]
[Date "2023.04.25"]
[WhiteClock "0:02:32"]
[BlackClock "0:02:33"]

1. d4 {[%clk 0:02:58]}  Nf6 {[%clk 0:02:59]} 2. c4 {[%clk 0:02:58]}  e6 {[%clk 0:02:53]} 3. Nc3 {[%clk 0:02:58]}  Bb4 {[%clk 0:02:52]} 4. Bd2 {[%clk 0:02:56]}  O-O {[%clk 0:02:50]} 5. Nf3 {[%clk 0:02:57]}  c5 {[%clk 0:02:49]} 6. dxc5 {[%clk 0:02:57]}  Na6 {[%clk 0:02:48]} 7. e3 {[%clk 0:02:57]}  Nxc5 {[%clk 0:02:47]} 8. a3 {[%clk 0:02:58]}  Bxc3 {[%clk 0:02:47]} 9. Bxc3 {[%clk 0:02:59]}  Nce4 {[%clk 0:02:47]} 10. Bd4 {[%clk 0:02:58]}  d6 {[%clk 0:02:47]} 11. b4 {[%clk 0:02:58]}  e5 {[%clk 0:02:47]} 12. Bb2 {[%clk 0:02:58]}  Bg4 {[%clk 0:02:46]} 13. Be2 {[%clk 0:02:58]}  Rc8 {[%clk 0:02:44]} 14. Rc1 {[%clk 0:02:56]}  a5 {[%clk 0:02:42]} 15. O-O {[%clk 0:02:55]}  axb4 {[%clk 0:02:41]} 16. axb4 {[%clk 0:02:55]}  Qb6 {[%clk 0:02:40]} 17. b5 {[%clk 0:02:39]}  Rfd8 {[%clk 0:02:36]} 18. h3 {[%clk 0:02:39]}  Be6 {[%clk 0:02:34]} 19. Ng5 {[%clk 0:02:32]}  Nxg5 {[%clk 0:02:33]} 0-1


[Site "https://www.chess.com"]

[Event "Titled Tuesday Blitz April 25 Late 2023"]
[White "Albuquerque Junior,Wellington S."]
[Black "Sztokbant, Bernardo Vainzoff"]
[WhiteFideId "2151480"]
[BlackFideId "2115956"]
[WhiteElo "2109"]
[BlackElo "2222"]
[Result "1-0"]
[Round "08"]
[TimeControl "180+2"]
[Date "2023.04.25"]
[WhiteClock "0:00:17"]
[BlackClock "0:00:13"]

1. c4 {[%clk 0:03:00]}  c6 {[%clk 0:02:59]} 2. g3 {[%clk 0:03:00]}  d5 {[%clk 0:03:00]} 3. Bg2 {[%clk 0:03:01]}  Nf6 {[%clk 0:03:01]} 4. Nf3 {[%clk 0:03:01]}  e6 {[%clk 0:03:01]} 5. b3 {[%clk 0:03:00]}  Be7 {[%clk 0:03:02]} 6. O-O {[%clk 0:03:00]}  O-O {[%clk 0:03:03]} 7. Bb2 {[%clk 0:03:01]}  Nbd7 {[%clk 0:03:03]} 8. e3 {[%clk 0:02:57]}  b6 {[%clk 0:03:03]} 9. d4 {[%clk 0:02:57]}  Bb7 {[%clk 0:03:04]} 10. Qe2 {[%clk 0:02:56]}  c5 {[%clk 0:03:03]} 11. Rd1 {[%clk 0:02:47]}  Qc7 {[%clk 0:03:03]} 12. Nc3 {[%clk 0:02:48]}  dxc4 {[%clk 0:03:02]} 13. Nb5 {[%clk 0:02:29]}  Qb8 {[%clk 0:02:53]} 14. bxc4 {[%clk 0:02:28]}  a6 {[%clk 0:02:53]} 15. Nc3 {[%clk 0:02:29]}  cxd4 {[%clk 0:02:53]} 16. exd4 {[%clk 0:02:28]}  Re8 {[%clk 0:02:51]} 17. Rac1 {[%clk 0:02:23]}  Qc7 {[%clk 0:02:48]} 18. Ne5 {[%clk 0:01:26]}  Bxg2 {[%clk 0:02:45]} 19. Kxg2 {[%clk 0:01:27]}  Rac8 {[%clk 0:02:37]} 20. Nxd7 {[%clk 0:01:13]}  Nxd7 {[%clk 0:02:34]} 21. Ne4 {[%clk 0:01:03]}  Qb7 {[%clk 0:02:28]} 22. Qf3 {[%clk 0:01:01]}  Rc7 {[%clk 0:02:15]} 23. d5 {[%clk 0:00:58]}  exd5 {[%clk 0:02:15]} 24. cxd5 {[%clk 0:00:59]}  Rxc1 {[%clk 0:02:13]} 25. Bxc1 {[%clk 0:00:59]}  Nf6 {[%clk 0:02:07]} 26. Nxf6+ {[%clk 0:00:31]}  Bxf6 {[%clk 0:02:07]} 27. d6 {[%clk 0:00:30]}  Qd7 {[%clk 0:01:58]} 28. h4 {[%clk 0:00:30]}  Be5 {[%clk 0:01:36]} 29. Bf4 {[%clk 0:00:14]}  Bxf4 {[%clk 0:01:27]} 30. Qxf4 {[%clk 0:00:14]}  h6 {[%clk 0:01:12]} 31. Qc4 {[%clk 0:00:12]}  b5 {[%clk 0:01:03]} 32. Qc7 {[%clk 0:00:11]}  Rd8 {[%clk 0:01:03]} 33. Qxd7 {[%clk 0:00:10]}  Rxd7 {[%clk 0:01:04]} 34. Kf3 {[%clk 0:00:10]}  f6 {[%clk 0:00:54]} 35. Ke4 {[%clk 0:00:11]}  Kf7 {[%clk 0:00:54]} 36. Kd5 {[%clk 0:00:11]}  Rd8 {[%clk 0:00:41]} 37. Kc6 {[%clk 0:00:09]}  b4 {[%clk 0:00:38]} 38. d7 {[%clk 0:00:08]}  a5 {[%clk 0:00:27]} 39. Kc7 {[%clk 0:00:08]}  Ra8 {[%clk 0:00:19]} 40. d8=Q {[%clk 0:00:09]}  Rxd8 {[%clk 0:00:19]} 41. Kxd8 {[%clk 0:00:09]}  Ke6 {[%clk 0:00:18]} 42. Kc7 {[%clk 0:00:09]}  Ke5 {[%clk 0:00:17]} 43. Kb6 {[%clk 0:00:09]}  a4 {[%clk 0:00:18]} 44. Kb5 {[%clk 0:00:09]}  b3 {[%clk 0:00:17]} 45. axb3 {[%clk 0:00:10]}  axb3 {[%clk 0:00:18]} 46. Kb4 {[%clk 0:00:11]}  Ke4 {[%clk 0:00:17]} 47. Kxb3 {[%clk 0:00:10]}  Kf3 {[%clk 0:00:17]} 48. Rd2 {[%clk 0:00:11]}  f5 {[%clk 0:00:17]} 49. Kc3 {[%clk 0:00:10]}  f4 {[%clk 0:00:18]} 50. gxf4 {[%clk 0:00:11]}  Kxf4 {[%clk 0:00:18]} 51. Kd4 {[%clk 0:00:12]}  Kg4 {[%clk 0:00:17]} 52. Ke5 {[%clk 0:00:12]}  Kxh4 {[%clk 0:00:18]} 53. Kf5 {[%clk 0:00:13]}  h5 {[%clk 0:00:17]} 54. f4 {[%clk 0:00:13]}  Kg3 {[%clk 0:00:17]} 55. Kg5 {[%clk 0:00:12]}  h4 {[%clk 0:00:17]} 56. Rd3+ {[%clk 0:00:12]}  Kf2 {[%clk 0:00:15]} 57. f5 {[%clk 0:00:13]}  Ke2 {[%clk 0:00:14]} 58. Rh3 {[%clk 0:00:13]}  Kf2 {[%clk 0:00:12]} 59. Rxh4 {[%clk 0:00:14]}  g6 {[%clk 0:00:13]} 60. fxg6 {[%clk 0:00:14]}  Ke2 {[%clk 0:00:13]} 61. Rh7 {[%clk 0:00:15]}  Kd2 {[%clk 0:00:12]} 62. Rf7 {[%clk 0:00:16]}  Kc2 {[%clk 0:00:13]} 63. g7 {[%clk 0:00:17]} 1-0


[Site "https://www.chess.com"]